[Event "Titled Tuesday Blitz June 27 Late 2023"]
[White "Morefield, Jason"]
[Black "Domingo Nunez, Ruben"]
[WhiteFideId "30920825"]
[BlackFideId "22245570"]
[WhiteElo "2767"]
[BlackElo "2583"]
[Result "1-0"]
[Round "9"]
[TimeControl "180+2"]
[Date "2023.06.27"]
[WhiteClock "0:00:16"]
[BlackClock "0:00:05"]
[Board "34"]

1. e4 {[%clk 0:02:56]}  a6 {[%clk 0:02:59]} 2. d4 {[%clk 0:02:56]}  h6 {[%clk 0:02:56]} 3. Nf3 {[%clk 0:02:53]}  g6 {[%clk 0:02:57]} 4. Bd3 {[%clk 0:02:46]}  Bg7 {[%clk 0:02:57]} 5. O-O {[%clk 0:02:38]}  d6 {[%clk 0:02:58]} 6. e5 {[%clk 0:02:38]}  Nc6 {[%clk 0:02:57]} 7. Re1 {[%clk 0:02:35]}  Bg4 {[%clk 0:02:37]} 8. h3 {[%clk 0:02:10]}  Bxf3 {[%clk 0:02:32]} 9. Qxf3 {[%clk 0:02:11]}  dxe5 {[%clk 0:02:16]} 10. dxe5 {[%clk 0:02:11]}  e6 {[%clk 0:02:17]} 11. Bf4 {[%clk 0:02:08]}  Nge7 {[%clk 0:01:57]} 12. Nc3 {[%clk 0:02:07]}  Qd4 {[%clk 0:01:45]} 13. Rad1 {[%clk 0:01:57]}  Qb4 {[%clk 0:01:43]} 14. Rb1 {[%clk 0:01:08]}  O-O-O {[%clk 0:01:13]} 15. Re4 {[%clk 0:00:57]}  Rd4 {[%clk 0:01:10]} 16. a3 {[%clk 0:00:53]}  Qa5 {[%clk 0:01:02]} 17. Rxd4 {[%clk 0:00:40]}  Nxd4 {[%clk 0:01:03]} 18. Qe4 {[%clk 0:00:39]}  Rd8 {[%clk 0:01:01]} 19. Rd1 {[%clk 0:00:30]}  Nec6 {[%clk 0:00:52]} 20. Re1 {[%clk 0:00:26]}  Nf5 {[%clk 0:00:31]} 21. Bh2 {[%clk 0:00:20]}  Rd4 {[%clk 0:00:31]} 22. Qe2 {[%clk 0:00:20]}  Rd7 {[%clk 0:00:18]} 23. Nb1 {[%clk 0:00:20]}  Rd5 {[%clk 0:00:12]} 24. b4 {[%clk 0:00:18]}  Qb6 {[%clk 0:00:12]} 25. Nc3 {[%clk 0:00:17]}  Rd7 {[%clk 0:00:07]} 26. Na4 {[%clk 0:00:16]}  Ncd4 {[%clk 0:00:05]} 27. Nxb6+ {[%clk 0:00:16]} 1-0


[Site "https://www.chess.com"]

[Event "Titled Tuesday Blitz June 27 Late 2023"]
[White "Mirzoev, Azer"]
[Black "Chor, Kevin"]
[WhiteFideId "13400304"]
[BlackFideId "2090740"]
[WhiteElo "2684"]
[BlackElo "2546"]
[Result "1-0"]
[Round "9"]
[TimeControl "180+2"]
[Date "2023.06.27"]
[WhiteClock "0:01:09"]
[BlackClock "0:00:33"]
[Board "41"]

1. c4 {[%clk 0:03:00]}  c5 {[%clk 0:02:59]} 2. Nc3 {[%clk 0:02:59]}  Nc6 {[%clk 0:02:58]} 3. g3 {[%clk 0:03:00]}  g6 {[%clk 0:02:57]} 4. Bg2 {[%clk 0:03:01]}  Bg7 {[%clk 0:02:58]} 5. h4 {[%clk 0:03:01]}  Nf6 {[%clk 0:02:57]} 6. a3 {[%clk 0:02:58]}  Rb8 {[%clk 0:02:56]} 7. Rb1 {[%clk 0:02:57]}  a5 {[%clk 0:02:56]} 8. d3 {[%clk 0:02:54]}  d6 {[%clk 0:02:51]} 9. Nh3 {[%clk 0:02:54]}  e5 {[%clk 0:02:33]} 10. Ng5 {[%clk 0:02:50]}  h6 {[%clk 0:02:32]} 11. Nge4 {[%clk 0:02:50]}  Nxe4 {[%clk 0:02:33]} 12. dxe4 {[%clk 0:02:48]}  Be6 {[%clk 0:02:30]} 13. b3 {[%clk 0:02:48]}  O-O {[%clk 0:02:28]} 14. e3 {[%clk 0:02:35]}  f5 {[%clk 0:02:22]} 15. h5 {[%clk 0:02:34]}  g5 {[%clk 0:02:17]} 16. exf5 {[%clk 0:02:33]}  Bxf5 {[%clk 0:02:17]} 17. Rb2 {[%clk 0:02:30]}  e4 {[%clk 0:02:00]} 18. Nxe4 {[%clk 0:02:29]}  Bxe4 {[%clk 0:01:51]} 19. Bxe4 {[%clk 0:02:27]}  Bc3+ {[%clk 0:01:51]} 20. Kf1 {[%clk 0:02:14]}  Bxb2 {[%clk 0:01:45]} 21. Bxb2 {[%clk 0:02:15]}  Ne5 {[%clk 0:01:36]} 22. Bd5+ {[%clk 0:02:14]}  Kg7 {[%clk 0:01:26]} 23. Kg2 {[%clk 0:02:06]}  Qf6 {[%clk 0:01:08]} 24. f4 {[%clk 0:01:44]}  b5 {[%clk 0:01:07]} 25. cxb5 {[%clk 0:01:41]}  Rxb5 {[%clk 0:01:05]} 26. Qe2 {[%clk 0:01:33]}  Rbb8 {[%clk 0:01:01]} 27. fxe5 {[%clk 0:01:25]}  dxe5 {[%clk 0:01:02]} 28. Bc3 {[%clk 0:01:24]}  Rfd8 {[%clk 0:00:55]} 29. e4 {[%clk 0:01:20]}  Rf8 {[%clk 0:00:54]} 30. a4 {[%clk 0:01:17]}  Rbd8 {[%clk 0:00:51]} 31. Rf1 {[%clk 0:01:11]}  Qxf1+ {[%clk 0:00:47]} 32. Qxf1 {[%clk 0:01:09]}  Rxf1 {[%clk 0:00:45]} 33. Kxf1 {[%clk 0:01:10]}  Kf6 {[%clk 0:00:33]} 34. Bxa5 {[%clk 0:01:09]} 1-0


[Site "https://www.chess.com"]

[Event "Titled Tuesday Blitz June 27 Late 2023"]
[White "ArchibaldCerveza29"]
[Black "Stoleriu, George"]
[BlackFideId "1227505"]
[WhiteElo "2532"]
[BlackElo "2675"]
[Result "0-1"]
[Round "9"]
[TimeControl "180+2"]
[Date "2023.06.27"]
[WhiteClock "0:00:49"]
[BlackClock "0:00:33"]
[Board "42"]

1. e4 {[%clk 0:03:00]}  e6 {[%clk 0:02:58]} 2. d4 {[%clk 0:03:00]}  d5 {[%clk 0:02:59]} 3. Nd2 {[%clk 0:03:01]}  Be7 {[%clk 0:02:58]} 4. Bd3 {[%clk 0:03:01]}  c5 {[%clk 0:02:58]} 5. c3 {[%clk 0:03:01]}  Nc6 {[%clk 0:02:58]} 6. Ngf3 {[%clk 0:03:01]}  cxd4 {[%clk 0:02:58]} 7. cxd4 {[%clk 0:03:02]}  dxe4 {[%clk 0:02:57]} 8. Nxe4 {[%clk 0:03:03]}  Nf6 {[%clk 0:02:57]} 9. O-O {[%clk 0:03:02]}  O-O {[%clk 0:02:57]} 10. Nc3 {[%clk 0:03:02]}  h6 {[%clk 0:02:56]} 11. a3 {[%clk 0:03:01]}  b6 {[%clk 0:02:56]} 12. Bc2 {[%clk 0:03:01]}  a5 {[%clk 0:02:53]} 13. Re1 {[%clk 0:03:01]}  Ba6 {[%clk 0:02:53]} 14. Be3 {[%clk 0:02:52]}  Rc8 {[%clk 0:02:52]} 15. Qd2 {[%clk 0:02:52]}  Ng4 {[%clk 0:02:50]} 16. Bf4 {[%clk 0:02:46]}  Bd6 {[%clk 0:02:44]} 17. Rad1 {[%clk 0:02:31]}  Ne7 {[%clk 0:02:24]} 18. Bb1 {[%clk 0:02:06]}  Bxf4 {[%clk 0:02:00]} 19. Qxf4 {[%clk 0:02:07]}  Nf6 {[%clk 0:02:01]} 20. Ne4 {[%clk 0:01:53]}  Ned5 {[%clk 0:01:59]} 21. Qh4 {[%clk 0:01:46]}  Nxe4 {[%clk 0:01:53]} 22. Qxe4 {[%clk 0:01:47]}  Nf6 {[%clk 0:01:54]} 23. Qh4 {[%clk 0:01:47]}  Qd5 {[%clk 0:01:45]} 24. Ne5 {[%clk 0:01:31]}  Rfd8 {[%clk 0:01:40]} 25. Rd2 {[%clk 0:01:23]}  Rc7 {[%clk 0:01:22]} 26. Qg3 {[%clk 0:01:17]}  Rdc8 {[%clk 0:01:13]} 27. h4 {[%clk 0:01:11]}  Rc1 {[%clk 0:01:11]} 28. Red1 {[%clk 0:01:12]}  Be2 {[%clk 0:00:37]} 29. Rxc1 {[%clk 0:00:57]}  Rxc1+ {[%clk 0:00:38]} 30. Kh2 {[%clk 0:00:58]}  Rxb1 {[%clk 0:00:35]} 31. Rxe2 {[%clk 0:00:58]}  Qxd4 {[%clk 0:00:35]} 32. Nc6 {[%clk 0:00:49]}  Ng4+ {[%clk 0:00:33]} 0-1


[Site "https://www.chess.com"]

[Event "Titled Tuesday Blitz June 27 Late 2023"]
[White "Sukandar, Irine Kharisma"]
[Black "Papp, Levente"]
[WhiteFideId "7101937"]
[BlackFideId "751243"]
[WhiteElo "2475"]
[BlackElo "2674"]
[Result "0-1"]
[Round "9"]
[TimeControl "180+2"]
[Date "2023.06.27"]
[WhiteClock "0:00:00"]
[BlackClock "0:00:06"]
[Board "43"]

1. e4 {[%clk 0:03:00]}  e6 {[%clk 0:03:00]} 2. d4 {[%clk 0:03:00]}  d5 {[%clk 0:03:00]} 3. Nc3 {[%clk 0:03:00]}  Bb4 {[%clk 0:03:00]} 4. exd5 {[%clk 0:03:00]}  exd5 {[%clk 0:03:00]} 5. Bd3 {[%clk 0:03:01]}  Nc6 {[%clk 0:03:01]} 6. Ne2 {[%clk 0:02:59]}  Nge7 {[%clk 0:03:00]} 7. a3 {[%clk 0:02:57]}  Bxc3+ {[%clk 0:03:00]} 8. bxc3 {[%clk 0:02:55]}  Bf5 {[%clk 0:03:01]} 9. Rb1 {[%clk 0:02:54]}  b6 {[%clk 0:03:01]} 10. O-O {[%clk 0:02:54]}  O-O {[%clk 0:03:00]} 11. Ng3 {[%clk 0:02:54]}  Bxd3 {[%clk 0:03:00]} 12. cxd3 {[%clk 0:02:54]}  Qd7 {[%clk 0:02:59]} 13. Qf3 {[%clk 0:02:49]}  Rfe8 {[%clk 0:02:51]} 14. Bg5 {[%clk 0:02:48]}  Ng6 {[%clk 0:02:51]} 15. Nf5 {[%clk 0:02:47]}  f6 {[%clk 0:02:32]} 16. Bd2 {[%clk 0:02:35]}  Nce7 {[%clk 0:02:29]} 17. Ne3 {[%clk 0:02:27]}  c6 {[%clk 0:02:28]} 18. g3 {[%clk 0:02:21]}  Qh3 {[%clk 0:02:25]} 19. Rfe1 {[%clk 0:02:10]}  Rad8 {[%clk 0:01:44]} 20. a4 {[%clk 0:02:07]}  Qd7 {[%clk 0:01:32]} 21. h4 {[%clk 0:01:57]}  Qh3 {[%clk 0:01:25]} 22. Ng2 {[%clk 0:01:47]}  Nf5 {[%clk 0:01:19]} 23. Qh5 {[%clk 0:01:21]}  Nxg3 {[%clk 0:00:49]} 24. fxg3 {[%clk 0:01:17]}  Qxg3 {[%clk 0:00:50]} 25. Rxe8+ {[%clk 0:00:58]}  Rxe8 {[%clk 0:00:50]} 26. Re1 {[%clk 0:00:59]}  Rxe1+ {[%clk 0:00:47]} 27. Bxe1 {[%clk 0:00:59]}  Qxd3 {[%clk 0:00:48]} 28. Qg4 {[%clk 0:00:58]}  Nf8 {[%clk 0:00:41]} 29. Qc8 {[%clk 0:00:55]}  Qc4 {[%clk 0:00:37]} 30. Bg3 {[%clk 0:00:52]}  Qxc3 {[%clk 0:00:18]} 31. Bd6 {[%clk 0:00:51]}  Qxd4+ {[%clk 0:00:18]} 32. Kh2 {[%clk 0:00:51]}  h5 {[%clk 0:00:16]} 33. Qxf8+ {[%clk 0:00:49]}  Kh7 {[%clk 0:00:16]} 34. Qe8 {[%clk 0:00:48]}  Qg4 {[%clk 0:00:16]} 35. Qxc6 {[%clk 0:00:47]}  d4 {[%clk 0:00:15]} 36. Qc2+ {[%clk 0:00:47]}  Kg8 {[%clk 0:00:14]} 37. Qb3+ {[%clk 0:00:44]}  Kh7 {[%clk 0:00:14]} 38. Qd3+ {[%clk 0:00:44]}  Kg8 {[%clk 0:00:14]} 39. Bg3 {[%clk 0:00:43]}  Kf7 {[%clk 0:00:08]} 40. Bf2 {[%clk 0:00:43]}  g5 {[%clk 0:00:08]} 41. Bxd4 {[%clk 0:00:42]}  gxh4 {[%clk 0:00:08]} 42. Qc4+ {[%clk 0:00:42]}  Kg6 {[%clk 0:00:09]} 43. Qd3+ {[%clk 0:00:40]}  Kf7 {[%clk 0:00:09]} 44. Bf2 {[%clk 0:00:37]}  Qxa4 {[%clk 0:00:06]} 45. Qh7+ {[%clk 0:00:34]}  Ke6 {[%clk 0:00:06]} 46. Qxh5 {[%clk 0:00:35]}  Qe4 {[%clk 0:00:05]} 47. Bxh4 {[%clk 0:00:34]}  Qe5+ {[%clk 0:00:05]} 48. Qxe5+ {[%clk 0:00:32]}  fxe5 {[%clk 0:00:06]} 49. Bf2 {[%clk 0:00:26]}  Kd5 {[%clk 0:00:06]} 50. Kg3 {[%clk 0:00:26]}  Ke4 {[%clk 0:00:05]} 51. Nh4 {[%clk 0:00:21]}  Kd3 {[%clk 0:00:05]} 52. Nf5 {[%clk 0:00:20]}  e4 {[%clk 0:00:05]} 53. Kf4 {[%clk 0:00:20]}  a5 {[%clk 0:00:04]} 54. Bxb6 {[%clk 0:00:19]}  a4 {[%clk 0:00:05]} 55. Bc5 {[%clk 0:00:16]}  Kc4 {[%clk 0:00:05]} 56. Bf8 {[%clk 0:00:15]}  Kb3 {[%clk 0:00:06]} 57. Kxe4 {[%clk 0:00:15]}  a3 {[%clk 0:00:06]} 58. Nd4+ {[%clk 0:00:06]}  Kb2 {[%clk 0:00:06]} 59. Nb5 {[%clk 0:00:04]}  a2 {[%clk 0:00:06]} 60. Bg7+ {[%clk 0:00:04]}  Kb1 {[%clk 0:00:04]} 61. Na3+ {[%clk 0:00:02]}  Kc1 {[%clk 0:00:05]} 62. Kd3 {[%clk 0:00:02]}  Kd1 {[%clk 0:00:05]} 63. Kc3 {[%clk 0:00:00]}  Kc1 {[%clk 0:00:06]} 0-1


[Site "https://www.chess.com"]

[Event "Titled Tuesday Blitz June 27 Late 2023"]
[White "Hoffmann, Asa"]
[Black "Vlassov, Nikolai"]
[WhiteFideId "2001470"]
[BlackFideId "4103360"]
[WhiteElo "2454"]
[BlackElo "2644"]
[Result "1-0"]
[Round "9"]
[TimeControl "180+2"]
[Date "2023.06.27"]
[WhiteClock "0:00:01"]
[BlackClock "0:00:00"]
[Board "45"]

1. d4 {[%clk 0:02:59]}  Nf6 {[%clk 0:02:58]} 2. Bg5 {[%clk 0:02:57]}  e6 {[%clk 0:02:58]} 3. Nd2 {[%clk 0:02:56]}  h6 {[%clk 0:02:58]} 4. Bh4 {[%clk 0:02:56]}  c5 {[%clk 0:02:54]} 5. e3 {[%clk 0:02:55]}  b6 {[%clk 0:02:53]} 6. Ngf3 {[%clk 0:02:54]}  Bb7 {[%clk 0:02:53]} 7. Bd3 {[%clk 0:02:53]}  g5 {[%clk 0:02:50]} 8. Bg3 {[%clk 0:02:52]}  g4 {[%clk 0:02:51]} 9. Nh4 {[%clk 0:02:47]}  Rg8 {[%clk 0:02:44]} 10. c4 {[%clk 0:02:36]}  cxd4 {[%clk 0:02:40]} 11. exd4 {[%clk 0:02:35]}  Be7 {[%clk 0:02:39]} 12. Qe2 {[%clk 0:02:13]}  Nc6 {[%clk 0:02:30]} 13. Be5 {[%clk 0:02:03]}  Nh5 {[%clk 0:02:20]} 14. Bh7 {[%clk 0:01:53]}  Rg5 {[%clk 0:01:55]} 15. f4 {[%clk 0:01:51]}  Rxe5 {[%clk 0:01:51]} 16. dxe5 {[%clk 0:01:44]}  Bxh4+ {[%clk 0:01:26]} 17. g3 {[%clk 0:01:44]}  Bxg3+ {[%clk 0:01:11]} 18. hxg3 {[%clk 0:01:37]}  Nxg3 {[%clk 0:01:11]} 19. Qg2 {[%clk 0:01:36]}  Nxh1 {[%clk 0:01:08]} 20. Qxh1 {[%clk 0:01:35]}  Qc7 {[%clk 0:01:01]} 21. Qxh6 {[%clk 0:01:27]}  O-O-O {[%clk 0:01:01]} 22. O-O-O {[%clk 0:01:23]}  Nd4 {[%clk 0:00:54]} 23. Qg7 {[%clk 0:01:14]}  g3 {[%clk 0:00:44]} 24. Kb1 {[%clk 0:01:01]}  g2 {[%clk 0:00:44]} 25. Be4 {[%clk 0:00:55]}  Ne2 {[%clk 0:00:31]} 26. Qxg2 {[%clk 0:00:49]}  Nxf4 {[%clk 0:00:31]} 27. Bxb7+ {[%clk 0:00:46]}  Qxb7 {[%clk 0:00:31]} 28. Qf2 {[%clk 0:00:40]}  Nd3 {[%clk 0:00:27]} 29. Qd4 {[%clk 0:00:37]}  Nc5 {[%clk 0:00:25]} 30. b4 {[%clk 0:00:34]}  Na4 {[%clk 0:00:23]} 31. Ne4 {[%clk 0:00:34]}  Kb8 {[%clk 0:00:22]} 32. Rd3 {[%clk 0:00:21]}  a5 {[%clk 0:00:19]} 33. a3 {[%clk 0:00:20]}  axb4 {[%clk 0:00:18]} 34. axb4 {[%clk 0:00:20]}  Rc8 {[%clk 0:00:17]} 35. Ka2 {[%clk 0:00:13]}  Qa6 {[%clk 0:00:15]} 36. Kb3 {[%clk 0:00:11]}  b5 {[%clk 0:00:13]} 37. Qd6+ {[%clk 0:00:08]}  Qxd6 {[%clk 0:00:12]} 38. Nxd6 {[%clk 0:00:08]}  bxc4+ {[%clk 0:00:12]} 39. Nxc4 {[%clk 0:00:02]}  d5 {[%clk 0:00:12]} 40. exd6 {[%clk 0:00:02]}  Rxc4 {[%clk 0:00:07]} 41. Kxc4 {[%clk 0:00:01]}  Nb6+ {[%clk 0:00:07]} 42. Kc5 {[%clk 0:00:01]}  Nd7+ {[%clk 0:00:06]} 43. Kb5 {[%clk 0:00:02]}  Kc8 {[%clk 0:00:05]} 44. Rc3+ {[%clk 0:00:02]}  Kd8 {[%clk 0:00:05]} 45. Rc7 {[%clk 0:00:02]}  f5 {[%clk 0:00:05]} 46. Kc6 {[%clk 0:00:01]}  Ne5+ {[%clk 0:00:05]} 47. Kc5 {[%clk 0:00:02]}  f4 {[%clk 0:00:06]} 48. Kd4 {[%clk 0:00:02]}  Nd7 {[%clk 0:00:02]} 49. Ke4 {[%clk 0:00:01]}  e5 {[%clk 0:00:00]} 50. b5 {[%clk 0:00:01]} 1-0


[Site "https://www.chess.com"]

[Event "Titled Tuesday Blitz June 27 Late 2023"]
[White "Matinian, Nikita"]
[Black "Nunez V, Gustavo Eduardo"]
[WhiteFideId "24129100"]
[BlackFideId "4403690"]
[WhiteElo "2717"]
[BlackElo "2461"]
[Result "1-0"]
[Round "9"]
[TimeControl "180+2"]
[Date "2023.06.27"]
[WhiteClock "0:01:59"]
[BlackClock "0:01:25"]
[Board "46"]

1. e4 {[%clk 0:03:00]}  c5 {[%clk 0:02:54]} 2. Nc3 {[%clk 0:03:00]}  g6 {[%clk 0:02:51]} 3. f4 {[%clk 0:02:59]}  Bg7 {[%clk 0:02:51]} 4. Nf3 {[%clk 0:02:59]}  e6 {[%clk 0:02:51]} 5. d4 {[%clk 0:02:54]}  cxd4 {[%clk 0:02:52]} 6. Nxd4 {[%clk 0:02:55]}  Nc6 {[%clk 0:02:53]} 7. Ndb5 {[%clk 0:02:54]}  Bf8 {[%clk 0:02:42]} 8. Nd6+ {[%clk 0:02:42]}  Bxd6 {[%clk 0:02:42]} 9. Qxd6 {[%clk 0:02:43]}  Qe7 {[%clk 0:02:42]} 10. Nb5 {[%clk 0:02:37]}  Qxd6 {[%clk 0:02:42]} 11. Nxd6+ {[%clk 0:02:38]}  Ke7 {[%clk 0:02:43]} 12. e5 {[%clk 0:02:34]}  f6 {[%clk 0:02:43]} 13. b3 {[%clk 0:02:34]}  fxe5 {[%clk 0:02:43]} 14. Ba3 {[%clk 0:02:34]}  Kf6 {[%clk 0:02:39]} 15. fxe5+ {[%clk 0:02:31]}  Nxe5 {[%clk 0:02:37]} 16. Bb5 {[%clk 0:02:31]}  Nh6 {[%clk 0:02:20]} 17. O-O+ {[%clk 0:02:24]}  Nf5 {[%clk 0:02:15]} 18. Bb2 {[%clk 0:02:23]}  a6 {[%clk 0:02:09]} 19. Ne4+ {[%clk 0:02:22]}  Ke7 {[%clk 0:02:07]} 20. Bxe5 {[%clk 0:02:22]}  axb5 {[%clk 0:02:06]} 21. Bxh8 {[%clk 0:02:22]}  d5 {[%clk 0:02:06]} 22. Ng3 {[%clk 0:02:16]}  Bd7 {[%clk 0:02:03]} 23. Be5 {[%clk 0:02:16]}  b4 {[%clk 0:02:03]} 24. Nxf5+ {[%clk 0:02:16]}  gxf5 {[%clk 0:02:03]} 25. c3 {[%clk 0:02:13]}  Bb5 {[%clk 0:02:03]} 26. Rfe1 {[%clk 0:02:12]}  bxc3 {[%clk 0:02:03]} 27. Bxc3 {[%clk 0:02:13]}  Rc8 {[%clk 0:02:03]} 28. Bb4+ {[%clk 0:02:12]}  Kf7 {[%clk 0:02:03]} 29. Rac1 {[%clk 0:02:13]}  Ra8 {[%clk 0:02:02]} 30. a4 {[%clk 0:02:12]}  Bc6 {[%clk 0:02:01]} 31. Bc3 {[%clk 0:02:12]}  Rg8 {[%clk 0:02:00]} 32. g3 {[%clk 0:02:06]}  h5 {[%clk 0:01:58]} 33. Kf2 {[%clk 0:02:06]}  h4 {[%clk 0:01:58]} 34. gxh4 {[%clk 0:02:05]}  d4 {[%clk 0:01:59]} 35. Bxd4 {[%clk 0:02:06]}  Rg2+ {[%clk 0:01:59]} 36. Ke3 {[%clk 0:02:06]}  Rxh2 {[%clk 0:01:57]} 37. Rxc6 {[%clk 0:02:05]}  bxc6 {[%clk 0:01:57]} 38. a5 {[%clk 0:02:06]}  Rxh4 {[%clk 0:01:53]} 39. Kd3 {[%clk 0:02:01]}  f4 {[%clk 0:01:49]} 40. a6 {[%clk 0:02:00]}  Rh3+ {[%clk 0:01:45]} 41. Kc4 {[%clk 0:02:00]}  e5 {[%clk 0:01:32]} 42. Rxe5 {[%clk 0:02:00]}  Rh2 {[%clk 0:01:29]} 43. Ra5 {[%clk 0:01:58]}  c5 {[%clk 0:01:24]} 44. Bxc5 {[%clk 0:01:58]}  Rc2+ {[%clk 0:01:23]} 45. Kb5 {[%clk 0:01:58]}  Rd2 {[%clk 0:01:20]} 46. a7 {[%clk 0:01:58]}  Rd8 {[%clk 0:01:20]} 47. a8=Q {[%clk 0:01:58]}  Rxa8 {[%clk 0:01:20]} 48. Rxa8 {[%clk 0:01:59]}  Ke6 {[%clk 0:01:21]} 49. Ra4 {[%clk 0:02:00]}  Kf5 {[%clk 0:01:22]} 50. Bd6 {[%clk 0:02:00]}  f3 {[%clk 0:01:23]} 51. Rf4+ {[%clk 0:02:00]}  Ke6 {[%clk 0:01:23]} 52. Kc5 {[%clk 0:01:59]}  f2 {[%clk 0:01:23]} 53. Rxf2 {[%clk 0:01:59]}  Kd7 {[%clk 0:01:24]} 54. Re2 {[%clk 0:01:59]}  Kd8 {[%clk 0:01:24]} 55. Kc6 {[%clk 0:01:59]}  Kc8 {[%clk 0:01:25]} 56. Re8# {[%clk 0:01:59]} 1-0


[Site "https://www.chess.com"]

[Event "Titled Tuesday Blitz June 27 Late 2023"]
[White "Goryachkina, Aleksandra"]
[Black "Jimenez Almeida, Luis David"]
[WhiteFideId "4147103"]
[BlackFideId "22242244"]
[WhiteElo "2665"]
[BlackElo "2555"]
[Result "1-0"]
[Round "9"]
[TimeControl "180+2"]
[Date "2023.06.27"]
[WhiteClock "0:00:12"]
[BlackClock "0:00:00"]
[Board "48"]

1. e4 {[%clk 0:02:59]}  c5 {[%clk 0:02:59]} 2. Nf3 {[%clk 0:02:59]}  e6 {[%clk 0:02:59]} 3. d4 {[%clk 0:02:57]}  cxd4 {[%clk 0:03:00]} 4. Nxd4 {[%clk 0:02:57]}  a6 {[%clk 0:03:00]} 5. Bd3 {[%clk 0:02:55]}  Qc7 {[%clk 0:03:00]} 6. O-O {[%clk 0:02:52]}  d6 {[%clk 0:02:59]} 7. c4 {[%clk 0:02:47]}  Nc6 {[%clk 0:02:55]} 8. Nxc6 {[%clk 0:02:38]}  bxc6 {[%clk 0:02:54]} 9. Nc3 {[%clk 0:02:32]}  Be7 {[%clk 0:02:47]} 10. Be3 {[%clk 0:02:27]}  Rb8 {[%clk 0:02:35]} 11. Qc2 {[%clk 0:02:04]}  Nf6 {[%clk 0:02:34]} 12. h3 {[%clk 0:01:59]}  O-O {[%clk 0:02:30]} 13. f4 {[%clk 0:01:34]}  Nd7 {[%clk 0:02:27]} 14. b3 {[%clk 0:01:29]}  Re8 {[%clk 0:02:16]} 15. Rad1 {[%clk 0:01:28]}  Qa5 {[%clk 0:02:05]} 16. Kh1 {[%clk 0:01:20]}  Nc5 {[%clk 0:01:53]} 17. Be2 {[%clk 0:01:13]}  Qc7 {[%clk 0:01:33]} 18. Bf3 {[%clk 0:01:05]}  Nd7 {[%clk 0:01:28]} 19. Qf2 {[%clk 0:01:04]}  c5 {[%clk 0:01:25]} 20. Rd2 {[%clk 0:01:00]}  Bb7 {[%clk 0:01:17]} 21. Rfd1 {[%clk 0:01:00]}  Rbd8 {[%clk 0:01:15]} 22. Ne2 {[%clk 0:00:59]}  Nb8 {[%clk 0:01:10]} 23. a3 {[%clk 0:00:31]}  a5 {[%clk 0:01:10]} 24. b4 {[%clk 0:00:29]}  axb4 {[%clk 0:01:05]} 25. axb4 {[%clk 0:00:29]}  Na6 {[%clk 0:01:02]} 26. b5 {[%clk 0:00:28]}  Nb4 {[%clk 0:01:02]} 27. f5 {[%clk 0:00:22]}  exf5 {[%clk 0:00:55]} 28. exf5 {[%clk 0:00:22]}  Bxf3 {[%clk 0:00:51]} 29. Qxf3 {[%clk 0:00:22]}  Bf6 {[%clk 0:00:49]} 30. Nf4 {[%clk 0:00:22]}  Bc3 {[%clk 0:00:39]} 31. Re2 {[%clk 0:00:21]}  Be5 {[%clk 0:00:31]} 32. Nd5 {[%clk 0:00:20]}  Nxd5 {[%clk 0:00:31]} 33. Rxd5 {[%clk 0:00:20]}  Qa7 {[%clk 0:00:26]} 34. Bg1 {[%clk 0:00:15]}  h6 {[%clk 0:00:16]} 35. Qd3 {[%clk 0:00:15]}  Qa1 {[%clk 0:00:15]} 36. Rd2 {[%clk 0:00:14]}  Qa5 {[%clk 0:00:09]} 37. Rd1 {[%clk 0:00:14]}  Qb4 {[%clk 0:00:09]} 38. Bh2 {[%clk 0:00:14]}  Bxh2 {[%clk 0:00:09]} 39. Kxh2 {[%clk 0:00:15]}  Qb2 {[%clk 0:00:04]} 40. Rxd6 {[%clk 0:00:12]}  Qe5+ {[%clk 0:00:02]} 41. Qg3 {[%clk 0:00:12]}  Rxd6 {[%clk 0:00:02]} 42. Qxe5 {[%clk 0:00:10]}  Rxe5 {[%clk 0:00:03]} 43. Rxd6 {[%clk 0:00:11]}  Re4 {[%clk 0:00:01]} 44. b6 {[%clk 0:00:11]}  Rxc4 {[%clk 0:00:01]} 45. b7 {[%clk 0:00:11]}  Rb4 {[%clk 0:00:00]} 46. Rd8+ {[%clk 0:00:12]} 1-0


[Site "https://www.chess.com"]

[Event "Titled Tuesday Blitz June 27 Late 2023"]
[White "Tologon tegin, Semetei"]
[Black "Veiga, Jose Francisco R P Neves"]
[WhiteFideId "13800574"]
[BlackFideId "1930087"]
[WhiteElo "2552"]
[BlackElo "2663"]
[Result "0-1"]
[Round "9"]
[TimeControl "180+2"]
[Date "2023.06.27"]
[WhiteClock "0:00:00"]
[BlackClock "0:00:36"]
[Board "49"]

1. g3 {[%clk 0:01:25]}  d5 {[%clk 0:02:55]} 2. Bg2 {[%clk 0:01:23]}  Nf6 {[%clk 0:02:56]} 3. d3 {[%clk 0:01:22]}  Bf5 {[%clk 0:02:55]} 4. Nd2 {[%clk 0:01:21]}  c6 {[%clk 0:02:56]} 5. e4 {[%clk 0:01:22]}  Bg6 {[%clk 0:02:56]} 6. Qe2 {[%clk 0:01:20]}  e6 {[%clk 0:02:56]} 7. Ngf3 {[%clk 0:01:20]}  Be7 {[%clk 0:02:55]} 8. O-O {[%clk 0:01:20]}  O-O {[%clk 0:02:55]} 9. h3 {[%clk 0:01:15]}  Nbd7 {[%clk 0:02:52]} 10. Nh4 {[%clk 0:01:15]}  e5 {[%clk 0:02:49]} 11. Nxg6 {[%clk 0:01:08]}  hxg6 {[%clk 0:02:50]} 12. f4 {[%clk 0:01:07]}  exf4 {[%clk 0:02:47]} 13. gxf4 {[%clk 0:01:08]}  dxe4 {[%clk 0:02:47]} 14. dxe4 {[%clk 0:01:08]}  Re8 {[%clk 0:02:38]} 15. Qf3 {[%clk 0:01:00]}  Qb6+ {[%clk 0:02:33]} 16. Kh1 {[%clk 0:00:59]}  Nc5 {[%clk 0:02:32]} 17. e5 {[%clk 0:00:55]}  Nh5 {[%clk 0:02:29]} 18. Qg4 {[%clk 0:00:30]}  Qb4 {[%clk 0:01:14]} 19. c3 {[%clk 0:00:28]}  Qb5 {[%clk 0:01:14]} 20. f5 {[%clk 0:00:22]}  Qd3 {[%clk 0:01:13]} 21. Rf3 {[%clk 0:00:21]}  Qc2 {[%clk 0:01:09]} 22. b4 {[%clk 0:00:11]}  Nd3 {[%clk 0:00:44]} 23. fxg6 {[%clk 0:00:11]}  fxg6 {[%clk 0:00:44]} 24. Qxg6 {[%clk 0:00:10]}  Nf2+ {[%clk 0:00:44]} 25. Rxf2 {[%clk 0:00:09]}  Qxg6 {[%clk 0:00:44]} 26. Nf3 {[%clk 0:00:06]}  Ng3+ {[%clk 0:00:42]} 27. Kh2 {[%clk 0:00:06]}  Ne4 {[%clk 0:00:41]} 28. Re2 {[%clk 0:00:05]}  Bf8 {[%clk 0:00:40]} 29. Bf4 {[%clk 0:00:05]}  Nxc3 {[%clk 0:00:39]} 30. Rd2 {[%clk 0:00:04]}  Nd5 {[%clk 0:00:39]} 31. Bg3 {[%clk 0:00:04]}  Bxb4 {[%clk 0:00:37]} 32. Rd4 {[%clk 0:00:04]}  Bc3 {[%clk 0:00:36]} 33. Rg4 {[%clk 0:00:05]}  Qxg4 {[%clk 0:00:36]} 34. hxg4 {[%clk 0:00:00]}  Bxa1 {[%clk 0:00:36]} 0-1


[Site "https://www.chess.com"]